[Event "Early-Titled-Tuesday-Blitz-April-23-2024"]
[Site "Chess.com"]
[Date "2024.04.23"]
[Round "8"]
[White "shimastream"]
[Black "K_A_S_T_O_R"]
[Result "1/2-1/2"]
[WhiteElo "3049"]
[BlackElo "2869"]
[TimeControl "180+1"]
[EndTime "9:32:26 PDT"]
[Termination "Game drawn by repetition"]

1. e4 {[%clk 0:02:59.9]} 1... e6 {[%clk 0:02:57.7]} 2. d4 {[%clk 0:02:51.2]}
2... d5 {[%clk 0:02:57.6]} 3. Nc3 {[%clk 0:02:52]} 3... Bb4 {[%clk 0:02:57.1]}
4. Ne2 {[%clk 0:02:51.9]} 4... Nc6 {[%clk 0:02:53.4]} 5. a3 {[%clk 0:02:51.5]}
5... Ba5 {[%clk 0:02:53.5]} 6. b4 {[%clk 0:02:40.6]} 6... Bb6 {[%clk 0:02:53.3]}
7. e5 {[%clk 0:01:58.9]} 7... f6 {[%clk 0:02:51.5]} 8. exf6 {[%clk 0:01:42.2]}
8... Qxf6 {[%clk 0:02:41.9]} 9. Be3 {[%clk 0:01:42.2]} 9... Nge7 {[%clk
0:02:40.4]} 10. Na4 {[%clk 0:01:42.8]} 10... Nf5 {[%clk 0:02:39.5]} 11. Nxb6
{[%clk 0:01:42.6]} 11... axb6 {[%clk 0:02:27.2]} 12. b5 {[%clk 0:01:20.9]} 12...
Nxe3 {[%clk 0:02:09.3]} 13. fxe3 {[%clk 0:01:21.8]} 13... Ne7 {[%clk 0:02:06.9]}
14. Nf4 {[%clk 0:01:17.6]} 14... Nf5 {[%clk 0:01:47.6]} 15. Qd2 {[%clk 0:01:13]}
15... O-O {[%clk 0:01:43.1]} 16. g3 {[%clk 0:01:11.7]} 16... Bd7 {[%clk
0:01:37.9]} 17. Bd3 {[%clk 0:01:09.9]} 17... Nd6 {[%clk 0:01:36.4]} 18. O-O
{[%clk 0:01:03.6]} 18... Qe7 {[%clk 0:01:32.4]} 19. a4 {[%clk 0:01:03.4]} 19...
c6 {[%clk 0:01:32.1]} 20. bxc6 {[%clk 0:01:00.8]} 20... bxc6 {[%clk 0:01:32]}
21. Qc3 {[%clk 0:00:56.9]} 21... Rfe8 {[%clk 0:01:17.1]} 22. a5 {[%clk 0:00:53]}
22... bxa5 {[%clk 0:01:16]} 23. Rxa5 {[%clk 0:00:53.9]} 23... Rxa5 {[%clk
0:01:15.7]} 24. Qxa5 {[%clk 0:00:54.8]} 24... e5 {[%clk 0:01:15.8]} 25. dxe5
{[%clk 0:00:55.7]} 25... Qxe5 {[%clk 0:01:15]} 26. Re1 {[%clk 0:00:54.3]} 26...
g5 {[%clk 0:01:05.8]} 27. Qc7 {[%clk 0:00:33.6]} 27... Qe7 {[%clk 0:00:45.8]}
28. Nh5 {[%clk 0:00:32]} 28... Rf8 {[%clk 0:00:46.1]} 29. g4 {[%clk 0:00:15.5]}
29... Ne8 {[%clk 0:00:37.3]} 30. Qg3 {[%clk 0:00:14.7]} 30... Nf6 {[%clk
0:00:34.7]} 31. Nxf6+ {[%clk 0:00:14.8]} 31... Rxf6 {[%clk 0:00:33.7]} 32. e4
{[%clk 0:00:12.9]} 32... d4 {[%clk 0:00:24.6]} 33. e5 {[%clk 0:00:11.5]} 33...
Rf4 {[%clk 0:00:24.3]} 34. h3 {[%clk 0:00:12.2]} 34... Be6 {[%clk 0:00:22.5]}
35. Rf1 {[%clk 0:00:09.6]} 35... Qf7 {[%clk 0:00:19.2]} 36. Rxf4 {[%clk
0:00:09.3]} 36... Qxf4 {[%clk 0:00:19.9]} 37. Qxf4 {[%clk 0:00:06.3]} 37... gxf4
{[%clk 0:00:20.3]} 38. Kf2 {[%clk 0:00:06.9]} 38... Bd5 {[%clk 0:00:20.6]} 39.
g5 {[%clk 0:00:07.3]} 39... Kg7 {[%clk 0:00:19.9]} 40. h4 {[%clk 0:00:07.3]}
40... h6 {[%clk 0:00:20.3]} 41. Bf5 {[%clk 0:00:03.8]} 41... hxg5 {[%clk
0:00:20.4]} 42. hxg5 {[%clk 0:00:04.7]} 42... c5 {[%clk 0:00:20.9]} 43. Ke2
{[%clk 0:00:05.2]} 43... c4 {[%clk 0:00:20.7]} 44. Kd2 {[%clk 0:00:05.6]} 44...
Kf7 {[%clk 0:00:20.9]} 45. Ke2 {[%clk 0:00:05.9]} 45... Kg7 {[%clk 0:00:18.7]}
46. Kd2 {[%clk 0:00:06.3]} 46... f3 {[%clk 0:00:18.8]} 47. Ke1 {[%clk
0:00:05.5]} 47... Kf7 {[%clk 0:00:17.2]} 48. Kf2 {[%clk 0:00:05.8]} 48... Kg7
{[%clk 0:00:17.6]} 49. Ke1 {[%clk 0:00:06.3]} 49... Kf7 {[%clk 0:00:17.7]} 50.
Kf2 {[%clk 0:00:06.9]} 50... Kg7 {[%clk 0:00:18.2]} 51. Ke1 {[%clk 0:00:03.7]}
1/2-1/2

[Event "Early-Titled-Tuesday-Blitz-April-23-2024"]
[Site "Chess.com"]
[Date "2024.04.23"]
[Round "8"]
[White "sathvikadiga"]
[Black "inagreV"]
[Result "0-1"]
[WhiteElo "2614"]
[BlackElo "2417"]
[TimeControl "180+1"]
[EndTime "9:32:26 PDT"]
[Termination "inagreV won by checkmate"]

1. e4 {[%clk 0:02:58.6]} 1... e6 {[%clk 0:02:57.9]} 2. d4 {[%clk 0:02:58]} 2...
d5 {[%clk 0:02:58.4]} 3. Bd3 {[%clk 0:02:57.9]} 3... c5 {[%clk 0:02:57.9]} 4.
exd5 {[%clk 0:02:57.7]} 4... exd5 {[%clk 0:02:58.8]} 5. Nf3 {[%clk 0:02:57.8]}
5... c4 {[%clk 0:02:55.5]} 6. Be2 {[%clk 0:02:58]} 6... Nf6 {[%clk 0:02:56]} 7.
O-O {[%clk 0:02:58]} 7... Bd6 {[%clk 0:02:56.1]} 8. b3 {[%clk 0:02:55.5]} 8...
cxb3 {[%clk 0:02:57]} 9. axb3 {[%clk 0:02:54.5]} 9... O-O {[%clk 0:02:57]} 10.
c4 {[%clk 0:02:54.8]} 10... h6 {[%clk 0:02:51.2]} 11. Na3 {[%clk 0:02:54.8]}
11... Nc6 {[%clk 0:02:49.8]} 12. Nc2 {[%clk 0:02:52.5]} 12... Re8 {[%clk
0:02:30.1]} 13. h3 {[%clk 0:02:45.7]} 13... Ne4 {[%clk 0:02:27.6]} 14. Be3
{[%clk 0:02:34]} 14... Bf5 {[%clk 0:02:11.3]} 15. Bd3 {[%clk 0:02:22.8]} 15...
Qf6 {[%clk 0:02:01.5]} 16. c5 {[%clk 0:01:58.4]} 16... Bc7 {[%clk 0:01:58]} 17.
b4 {[%clk 0:01:56.8]} 17... Ne7 {[%clk 0:01:50.8]} 18. Ne5 {[%clk 0:01:22.3]}
18... Ng6 {[%clk 0:01:29.3]} 19. Ng4 {[%clk 0:00:44.8]} 19... Qh4 {[%clk
0:01:14.1]} 20. f3 {[%clk 0:00:28.9]} 20... Bxg4 {[%clk 0:00:53.9]} 21. fxg4
{[%clk 0:00:26.1]} 21... Qg3 {[%clk 0:00:52.7]} 22. Bxe4 {[%clk 0:00:20.9]}
22... Rxe4 {[%clk 0:00:51.7]} 23. Qf3 {[%clk 0:00:09.6]} 23... Qh2+ {[%clk
0:00:43.6]} 24. Kf2 {[%clk 0:00:10]} 24... Nh4 {[%clk 0:00:43.8]} 25. Qe2 {[%clk
0:00:09.2]} 25... Qxg2+ {[%clk 0:00:42.7]} 26. Ke1 {[%clk 0:00:09.2]} 26... Qg3+
{[%clk 0:00:29.2]} 27. Kd2 {[%clk 0:00:07.9]} 27... Rae8 {[%clk 0:00:29.2]} 28.
Rf2 {[%clk 0:00:05.3]} 28... Bf4 {[%clk 0:00:17.6]} 29. Re1 {[%clk 0:00:02.1]}
29... Bxe3+ {[%clk 0:00:16.2]} 30. Nxe3 {[%clk 0:00:02.6]} 30... Rxd4+ {[%clk
0:00:16]} 31. Kc3 {[%clk 0:00:02.4]} 31... Rde4 {[%clk 0:00:12.2]} 32. Qd2
{[%clk 0:00:03.1]} 32... Rxe3+ {[%clk 0:00:11.9]} 33. Rxe3 {[%clk 0:00:04]}
33... Rxe3+ {[%clk 0:00:11.9]} 34. Kc2 {[%clk 0:00:04.7]} 34... Qe5 {[%clk
0:00:10.7]} 35. Rf1 {[%clk 0:00:02.7]} 35... Nf3 {[%clk 0:00:10.1]} 36. Rb1
{[%clk 0:00:01.8]} 36... Nd4+ {[%clk 0:00:10.1]} 37. Kd1 {[%clk 0:00:02]} 37...
Qe4 {[%clk 0:00:07.8]} 38. Qf2 {[%clk 0:00:02.1]} 38... Qxb1+ {[%clk 0:00:07.7]}
39. Kd2 {[%clk 0:00:02.7]} 39... Qd3+ {[%clk 0:00:07.5]} 40. Kc1 {[%clk
0:00:02.9]} 40... Re2 {[%clk 0:00:05.8]} 41. Qxf7+ {[%clk 0:00:02.2]} 41... Kxf7
{[%clk 0:00:05.5]} 42. c6 {[%clk 0:00:02.6]} 42... Qc2# {[%clk 0:00:06]} 0-1

[Event "Early-Titled-Tuesday-Blitz-April-23-2024"]
[Site "Chess.com"]
[Date "2024.04.23"]
[Round "8"]
[White "karinachess1"]
[Black "viktorgen2021"]
[Result "1-0"]
[WhiteElo "2610"]
[BlackElo "2466"]
[TimeControl "180+1"]
[EndTime "9:32:26 PDT"]
[Termination "karinachess1 won on time"]

1. d4 {[%clk 0:03:00.9]} 1... Nf6 {[%clk 0:02:57.8]} 2. c4 {[%clk 0:03:01.6]}
2... g6 {[%clk 0:02:52.9]} 3. Nc3 {[%clk 0:03:02.3]} 3... Bg7 {[%clk 0:02:53.6]}
4. e4 {[%clk 0:03:02.1]} 4... O-O {[%clk 0:02:54.3]} 5. Be2 {[%clk 0:03:02.5]}
5... d6 {[%clk 0:02:54.9]} 6. h4 {[%clk 0:03:02.9]} 6... h5 {[%clk 0:02:54.2]}
7. Bg5 {[%clk 0:03:03.1]} 7... Nc6 {[%clk 0:02:50.5]} 8. Nf3 {[%clk 0:03:03.1]}
8... Bg4 {[%clk 0:02:47.6]} 9. d5 {[%clk 0:03:02.7]} 9... Nb8 {[%clk 0:02:42.4]}
10. O-O {[%clk 0:02:50]} 10... e5 {[%clk 0:02:27.7]} 11. dxe6 {[%clk 0:02:34.6]}
11... Bxe6 {[%clk 0:02:24.2]} 12. Nd4 {[%clk 0:02:34.8]} 12... Qd7 {[%clk
0:02:05.6]} 13. Qc2 {[%clk 0:01:56]} 13... Nc6 {[%clk 0:01:53.7]} 14. Nxe6
{[%clk 0:01:51]} 14... Qxe6 {[%clk 0:01:54.6]} 15. Rad1 {[%clk 0:01:47.6]} 15...
Rfe8 {[%clk 0:01:47.1]} 16. f3 {[%clk 0:01:45.2]} 16... Nh7 {[%clk 0:01:43.7]}
17. Be3 {[%clk 0:01:41.3]} 17... Bf6 {[%clk 0:01:40.7]} 18. Bf2 {[%clk
0:01:40.8]} 18... Bg7 {[%clk 0:01:35.2]} 19. Nd5 {[%clk 0:01:40.4]} 19... Rac8
{[%clk 0:01:33]} 20. b4 {[%clk 0:01:34.4]} 20... b6 {[%clk 0:01:32.2]} 21. b5
{[%clk 0:01:31.7]} 21... Ne5 {[%clk 0:01:31.4]} 22. Bd4 {[%clk 0:01:08.1]} 22...
Nf6 {[%clk 0:01:12.2]} 23. Be3 {[%clk 0:00:50.1]} 23... Nfd7 {[%clk 0:01:09.5]}
24. Bf2 {[%clk 0:00:45.1]} 24... Nc5 {[%clk 0:01:08.9]} 25. Rfe1 {[%clk
0:00:45.5]} 25... Kh7 {[%clk 0:00:57]} 26. f4 {[%clk 0:00:45.8]} 26... Ng4
{[%clk 0:00:52.3]} 27. Bf3 {[%clk 0:00:46.1]} 27... Nxf2 {[%clk 0:00:51.7]} 28.
Qxf2 {[%clk 0:00:46.5]} 28... Qd7 {[%clk 0:00:47.1]} 29. Re2 {[%clk 0:00:37]}
29... Kh8 {[%clk 0:00:45]} 30. Ree1 {[%clk 0:00:31.5]} 30... Qe6 {[%clk
0:00:31]} 31. g3 {[%clk 0:00:29.4]} 31... Qd7 {[%clk 0:00:30.1]} 32. Kg2 {[%clk
0:00:29.8]} 32... c6 {[%clk 0:00:27.9]} 33. bxc6 {[%clk 0:00:26.8]} 33... Qxc6
{[%clk 0:00:28.5]} 34. e5 {[%clk 0:00:25.3]} 34... dxe5 {[%clk 0:00:22.1]} 35.
Ne7 {[%clk 0:00:25.6]} 35... Qa4 {[%clk 0:00:21.1]} 36. Nxc8 {[%clk 0:00:25.3]}
36... Rxc8 {[%clk 0:00:22]} 37. fxe5 {[%clk 0:00:24.4]} 37... Ne6 {[%clk
0:00:21.9]} 38. Bd5 {[%clk 0:00:23.7]} 38... Rf8 {[%clk 0:00:18.5]} 39. Rf1
{[%clk 0:00:22.9]} 39... Bxe5 {[%clk 0:00:17.5]} 40. Qe2 {[%clk 0:00:23.3]}
40... Bg7 {[%clk 0:00:12]} 41. Bxe6 {[%clk 0:00:20.4]} 41... Re8 {[%clk
0:00:12.3]} 42. Rxf7 {[%clk 0:00:19.5]} 42... Qc6+ {[%clk 0:00:12.9]} 43. Qf3
{[%clk 0:00:13.2]} 43... Qxe6 {[%clk 0:00:11.7]} 44. Rdd7 {[%clk 0:00:12.1]}
44... Qe1 {[%clk 0:00:09.7]} 45. Rxg7 {[%clk 0:00:09.6]} 45... Re2+ {[%clk
0:00:05.9]} 46. Kh3 {[%clk 0:00:10.1]} 1-0

[Event "Early-Titled-Tuesday-Blitz-April-23-2024"]
[Site "Chess.com"]
[Date "2024.04.23"]
[Round "8"]
[White "CMButgood"]
[Black "esrosenberg"]
[Result "1-0"]
[WhiteElo "2184"]
[BlackElo "2311"]
[TimeControl "180+1"]
[EndTime "9:32:26 PDT"]
[Termination "CMButgood won on time"]

1. e4 {[%clk 0:03:00.9]} 1... g6 {[%clk 0:02:53.8]} 2. d4 {[%clk 0:03:00.8]}
2... Bg7 {[%clk 0:02:53.5]} 3. Nc3 {[%clk 0:03:01.7]} 3... d5 {[%clk 0:02:52.6]}
4. e5 {[%clk 0:03:00.6]} 4... f6 {[%clk 0:02:47.3]} 5. f4 {[%clk 0:02:58.3]}
5... Nh6 {[%clk 0:02:44.9]} 6. Nf3 {[%clk 0:02:56.6]} 6... Bg4 {[%clk
0:02:43.4]} 7. Be2 {[%clk 0:02:56.6]} 7... O-O {[%clk 0:02:23.7]} 8. O-O {[%clk
0:02:55.7]} 8... e6 {[%clk 0:02:11.2]} 9. exf6 {[%clk 0:02:44.2]} 9... Bxf6
{[%clk 0:02:09.2]} 10. Ne5 {[%clk 0:02:44.5]} 10... Bxe2 {[%clk 0:02:06.3]} 11.
Qxe2 {[%clk 0:02:44.7]} 11... Nf5 {[%clk 0:01:57.8]} 12. Be3 {[%clk 0:02:41.2]}
12... c5 {[%clk 0:01:48.9]} 13. dxc5 {[%clk 0:02:40.5]} 13... d4 {[%clk
0:01:48.3]} 14. Rad1 {[%clk 0:02:39]} 14... Nxe3 {[%clk 0:01:46.2]} 15. Qxe3
{[%clk 0:02:28.8]} 15... dxe3 {[%clk 0:01:44.9]} 16. Rxd8 {[%clk 0:02:29.7]}
16... Bxd8 {[%clk 0:01:14.5]} 17. Ne4 {[%clk 0:02:30.6]} 17... Nc6 {[%clk
0:01:02.7]} 18. Nc4 {[%clk 0:02:22.5]} 18... e5 {[%clk 0:00:51.3]} 19. fxe5
{[%clk 0:02:18.3]} 19... Rxf1+ {[%clk 0:00:49.8]} 20. Kxf1 {[%clk 0:02:19.2]}
20... Bc7 {[%clk 0:00:38.8]} 21. e6 {[%clk 0:02:13]} 21... Nd4 {[%clk
0:00:31.5]} 22. Nf6+ {[%clk 0:02:01.3]} 22... Kg7 {[%clk 0:00:29.7]} 23. Nd5
{[%clk 0:01:59.5]} 23... Nxe6 {[%clk 0:00:28.4]} 24. Ncxe3 {[%clk 0:01:55.5]}
24... Bxh2 {[%clk 0:00:27.9]} 25. b4 {[%clk 0:01:51.9]} 25... Be5 {[%clk
0:00:26.5]} 26. Nc4 {[%clk 0:01:48.5]} 26... Bd4 {[%clk 0:00:23.1]} 27. Nd6
{[%clk 0:01:44.9]} 27... b6 {[%clk 0:00:20.4]} 28. c6 {[%clk 0:01:44.7]} 28...
Rd8 {[%clk 0:00:18.2]} 29. c7 {[%clk 0:01:39.9]} 29... Nxc7 {[%clk 0:00:17.8]}
30. Nxc7 {[%clk 0:01:40.2]} 30... Kg8 {[%clk 0:00:10.7]} 31. Ne4 {[%clk
0:01:28.8]} 31... Be5 {[%clk 0:00:08.2]} 32. Nb5 {[%clk 0:01:11.9]} 32... Rd1+
{[%clk 0:00:08.6]} 33. Ke2 {[%clk 0:01:11.8]} 33... Ra1 {[%clk 0:00:08.6]} 34.
Nxa7 {[%clk 0:01:06.7]} 34... Rxa2 {[%clk 0:00:07.8]} 35. Nb5 {[%clk 0:00:58.5]}
35... Rxc2+ {[%clk 0:00:07.7]} 36. Kf3 {[%clk 0:00:58.8]} 36... Bg7 {[%clk
0:00:07.7]} 37. Nbd6 {[%clk 0:00:53.6]} 37... Rb2 {[%clk 0:00:07.2]} 38. b5
{[%clk 0:00:53.7]} 38... Bf8 {[%clk 0:00:07]} 39. Nf6+ {[%clk 0:00:49.8]} 39...
Kg7 {[%clk 0:00:06.6]} 40. Nfe8+ {[%clk 0:00:47.5]} 40... Kh6 {[%clk 0:00:06.3]}
41. Nf7+ {[%clk 0:00:43]} 41... Kh5 {[%clk 0:00:06.3]} 42. Nf6+ {[%clk
0:00:38.5]} 42... Kh4 {[%clk 0:00:06.1]} 43. g3+ {[%clk 0:00:36.5]} 43... Kh3
{[%clk 0:00:06.1]} 44. Ng5+ {[%clk 0:00:36.7]} 44... Kh2 {[%clk 0:00:06]} 45.
Ng4+ {[%clk 0:00:34.1]} 45... Kh1 {[%clk 0:00:04.9]} 46. Nf2+ {[%clk 0:00:33.4]}
46... Rxf2+ {[%clk 0:00:02.5]} 47. Kxf2 {[%clk 0:00:32.2]} 47... h6 {[%clk
0:00:03.2]} 48. Nh3 {[%clk 0:00:26.5]} 48... Bd6 {[%clk 0:00:02.9]} 49. Kf3
{[%clk 0:00:25.3]} 49... g5 {[%clk 0:00:02.5]} 50. Nf2+ {[%clk 0:00:24.9]} 50...
Kg1 {[%clk 0:00:01.1]} 51. Ne4 {[%clk 0:00:20.5]} 1-0

[Event "Early-Titled-Tuesday-Blitz-April-23-2024"]
[Site "Chess.com"]
[Date "2024.04.23"]
[Round "8"]
[White "Iskusnyh"]
[Black "ccccvhhhj"]
[Result "1-0"]
[WhiteElo "2644"]
[BlackElo "2466"]
[TimeControl "180+1"]
[EndTime "9:32:28 PDT"]
[Termination "Iskusnyh won on time"]

1. d4 {[%clk 0:02:58.9]} 1... e5 {[%clk 0:03:00]} 2. dxe5 {[%clk 0:02:55.7]}
2... d6 {[%clk 0:03:00.7]} 3. Nc3 {[%clk 0:02:47.5]} 3... Nc6 {[%clk 0:02:59.3]}
4. Nf3 {[%clk 0:02:39.3]} 4... Bg4 {[%clk 0:02:58.9]} 5. Bg5 {[%clk 0:02:34]}
5... Qd7 {[%clk 0:02:04.9]} 6. exd6 {[%clk 0:02:11.5]} 6... Bxd6 {[%clk
0:01:51.8]} 7. e3 {[%clk 0:02:11]} 7... f6 {[%clk 0:01:50.4]} 8. Bh4 {[%clk
0:02:02.4]} 8... O-O-O {[%clk 0:01:50.4]} 9. Bb5 {[%clk 0:01:55.4]} 9... Nge7
{[%clk 0:01:45.2]} 10. Qe2 {[%clk 0:01:54.2]} 10... Nf5 {[%clk 0:01:35.9]} 11.
Bg3 {[%clk 0:01:50.9]} 11... Nxg3 {[%clk 0:01:36.4]} 12. hxg3 {[%clk 0:01:50.4]}
12... Bb4 {[%clk 0:01:37.3]} 13. Qc4 {[%clk 0:01:38.7]} 13... Be6 {[%clk
0:01:16.9]} 14. Bxc6 {[%clk 0:01:24.2]} 14... Bxc4 {[%clk 0:01:17.2]} 15. Bxd7+
{[%clk 0:01:24]} 15... Rxd7 {[%clk 0:01:18.1]} 16. Rh4 {[%clk 0:01:21.4]} 16...
Bxc3+ {[%clk 0:01:14.8]} 17. bxc3 {[%clk 0:01:21.2]} 17... Bd5 {[%clk
0:01:06.9]} 18. c4 {[%clk 0:01:17.2]} 18... Bxf3 {[%clk 0:00:57.7]} 19. gxf3
{[%clk 0:01:16.6]} 19... h6 {[%clk 0:00:58.6]} 20. Rd4 {[%clk 0:01:09.4]} 20...
Re8 {[%clk 0:00:57.5]} 21. Rad1 {[%clk 0:01:07.8]} 21... Rxd4 {[%clk 0:00:54.3]}
22. Rxd4 {[%clk 0:01:06.1]} 22... c6 {[%clk 0:00:55.2]} 23. f4 {[%clk
0:01:05.5]} 23... Re7 {[%clk 0:00:55.6]} 24. Ke2 {[%clk 0:01:04.4]} 24... Kc7
{[%clk 0:00:56.1]} 25. c5 {[%clk 0:01:01.8]} 25... Re8 {[%clk 0:00:44.2]} 26.
Ra4 {[%clk 0:01:00.3]} 26... a6 {[%clk 0:00:42.1]} 27. Rd4 {[%clk 0:00:59.9]}
27... Re7 {[%clk 0:00:42.3]} 28. Kf3 {[%clk 0:00:57]} 28... Re8 {[%clk
0:00:41.3]} 29. Kg4 {[%clk 0:00:55.8]} 29... g6 {[%clk 0:00:41.7]} 30. Kf3
{[%clk 0:00:55.9]} 30... h5 {[%clk 0:00:35.9]} 31. Rd6 {[%clk 0:00:50]} 31...
Rf8 {[%clk 0:00:34.1]} 32. Ke4 {[%clk 0:00:44.5]} 32... b6 {[%clk 0:00:33]} 33.
Kd4 {[%clk 0:00:44.5]} 33... Rf7 {[%clk 0:00:17.9]} 34. e4 {[%clk 0:00:42.3]}
34... a5 {[%clk 0:00:14]} 35. e5 {[%clk 0:00:38.8]} 35... fxe5+ {[%clk
0:00:14.5]} 36. Kxe5 {[%clk 0:00:38.9]} 36... bxc5 {[%clk 0:00:13.9]} 37. Rxg6
{[%clk 0:00:38.4]} 37... Re7+ {[%clk 0:00:14.1]} 38. Re6 {[%clk 0:00:38.2]}
38... Rd7 {[%clk 0:00:11.1]} 39. f5 {[%clk 0:00:33.8]} 39... Rd2 {[%clk
0:00:11.7]} 40. Re7+ {[%clk 0:00:28.7]} 40... Kd8 {[%clk 0:00:10.6]} 41. Ra7
{[%clk 0:00:23.5]} 41... Rxc2 {[%clk 0:00:06.4]} 42. f4 {[%clk 0:00:21.8]} 42...
c4 {[%clk 0:00:06]} 43. f6 {[%clk 0:00:21.8]} 43... Ke8 {[%clk 0:00:03.6]} 44.
f7+ {[%clk 0:00:21.8]} 44... Kf8 {[%clk 0:00:03.6]} 45. Kf6 {[%clk 0:00:22]}
45... Rd2 {[%clk 0:00:01.7]} 46. Ra8+ {[%clk 0:00:21.5]} 1-0

[Event "Early-Titled-Tuesday-Blitz-April-23-2024"]
[Site "Chess.com"]
[Date "2024.04.23"]
[Round "8"]
[White "Anton_Demchenko"]
[Black "Keranke"]
[Result "1/2-1/2"]
[WhiteElo "2977"]
[BlackElo "2865"]
[TimeControl "180+1"]
[EndTime "9:32:29 PDT"]
[Termination "Game drawn by repetition"]

1. e4 {[%clk 0:03:00.9]} 1... d5 {[%clk 0:02:47.4]} 2. exd5 {[%clk 0:03:00.8]}
2... Qxd5 {[%clk 0:02:48.3]} 3. Nc3 {[%clk 0:03:01.1]} 3... Qd6 {[%clk
0:02:47.6]} 4. g3 {[%clk 0:03:01.4]} 4... Nf6 {[%clk 0:02:47.9]} 5. Bg2 {[%clk
0:03:01.5]} 5... a6 {[%clk 0:02:48.2]} 6. Nge2 {[%clk 0:03:00.5]} 6... Nc6
{[%clk 0:02:48.7]} 7. d3 {[%clk 0:02:45.7]} 7... Bf5 {[%clk 0:02:40.1]} 8. Ne4
{[%clk 0:02:19.9]} 8... Nxe4 {[%clk 0:02:08.5]} 9. dxe4 {[%clk 0:02:20.8]} 9...
Qxd1+ {[%clk 0:02:09.1]} 10. Kxd1 {[%clk 0:02:21.6]} 10... O-O-O+ {[%clk
0:02:08.6]} 11. Bd2 {[%clk 0:02:20.5]} 11... Bd7 {[%clk 0:02:03.1]} 12. Kc1
{[%clk 0:01:53.1]} 12... e5 {[%clk 0:01:58.6]} 13. Be3 {[%clk 0:01:48.1]} 13...
Be6 {[%clk 0:01:49.6]} 14. Rd1 {[%clk 0:01:37]} 14... Be7 {[%clk 0:01:48.6]} 15.
Nc3 {[%clk 0:01:10.1]} 15... Rxd1+ {[%clk 0:01:16]} 16. Kxd1 {[%clk 0:01:08]}
16... Rd8+ {[%clk 0:01:16.5]} 17. Kc1 {[%clk 0:01:08.7]} 17... Nd4 {[%clk
0:01:08.7]} 18. Nd5 {[%clk 0:00:51.4]} 18... Bf8 {[%clk 0:00:48.9]} 19. c3
{[%clk 0:00:47.7]} 19... Nb5 {[%clk 0:00:47.4]} 20. Kc2 {[%clk 0:00:38.1]} 20...
c6 {[%clk 0:00:46.5]} 21. Nb6+ {[%clk 0:00:36.1]} 21... Kc7 {[%clk 0:00:46.4]}
22. Na4 {[%clk 0:00:36.6]} 22... Kc8 {[%clk 0:00:30.2]} 23. Nc5 {[%clk
0:00:28.3]} 23... Bxc5 {[%clk 0:00:29.4]} 24. Bxc5 {[%clk 0:00:29]} 24... f6
{[%clk 0:00:29.5]} 25. a4 {[%clk 0:00:25.9]} 25... Nd6 {[%clk 0:00:29.3]} 26. b3
{[%clk 0:00:26.6]} 26... Kc7 {[%clk 0:00:29.4]} 27. a5 {[%clk 0:00:25.3]} 27...
Nc8 {[%clk 0:00:27.4]} 28. f4 {[%clk 0:00:21]} 28... Rd7 {[%clk 0:00:20.9]} 29.
f5 {[%clk 0:00:19.6]} 29... Bf7 {[%clk 0:00:21]} 30. g4 {[%clk 0:00:20.4]} 30...
Nd6 {[%clk 0:00:20.5]} 31. Rd1 {[%clk 0:00:18.8]} 31... Nb5 {[%clk 0:00:19.3]}
32. Bb6+ {[%clk 0:00:19]} 32... Kc8 {[%clk 0:00:18.9]} 33. Rxd7 {[%clk
0:00:19.8]} 33... Kxd7 {[%clk 0:00:19.8]} 34. h4 {[%clk 0:00:16]} 34... h6
{[%clk 0:00:18.4]} 35. Bf1 {[%clk 0:00:14]} 35... Nd6 {[%clk 0:00:18.6]} 36. Bd3
{[%clk 0:00:13.6]} 36... Ke7 {[%clk 0:00:17]} 37. Bc5 {[%clk 0:00:12.9]} 37...
Kd7 {[%clk 0:00:17.3]} 38. c4 {[%clk 0:00:13.7]} 38... Kc7 {[%clk 0:00:17.5]}
39. Kc3 {[%clk 0:00:13.8]} 39... Kd7 {[%clk 0:00:17.9]} 40. Kd2 {[%clk 0:00:14]}
40... Kc7 {[%clk 0:00:18.1]} 41. Ke3 {[%clk 0:00:14.5]} 41... Kd7 {[%clk
0:00:18.8]} 42. Kf3 {[%clk 0:00:14.3]} 42... Kc7 {[%clk 0:00:19.2]} 43. Kg3
{[%clk 0:00:14.3]} 43... Kd7 {[%clk 0:00:19.7]} 44. Kf2 {[%clk 0:00:14.2]} 44...
Kc7 {[%clk 0:00:20.1]} 45. Bb6+ {[%clk 0:00:13.5]} 45... Kd7 {[%clk 0:00:20.5]}
46. Ke2 {[%clk 0:00:14.3]} 46... Ke7 {[%clk 0:00:20.3]} 47. Be3 {[%clk
0:00:13.4]} 47... Kd7 {[%clk 0:00:20.6]} 48. g5 {[%clk 0:00:14]} 48... hxg5
{[%clk 0:00:19]} 49. hxg5 {[%clk 0:00:14.9]} 49... Ke7 {[%clk 0:00:19.4]} 50. g6
{[%clk 0:00:15.3]} 50... Bg8 {[%clk 0:00:18.1]} 51. Bc5 {[%clk 0:00:16]} 51...
Kd7 {[%clk 0:00:18.5]} 52. Kd2 {[%clk 0:00:16.7]} 52... Kc7 {[%clk 0:00:18.3]}
53. Kc3 {[%clk 0:00:17.4]} 53... Kd7 {[%clk 0:00:19]} 54. Bb6 {[%clk 0:00:17.8]}
54... Nc8 {[%clk 0:00:18.7]} 55. Bc5 {[%clk 0:00:17.4]} 55... Nd6 {[%clk
0:00:19]} 56. Kb4 {[%clk 0:00:18]} 56... Kc7 {[%clk 0:00:18.9]} 57. Bc2 {[%clk
0:00:18.6]} 57... Kd7 {[%clk 0:00:19.2]} 58. Kc3 {[%clk 0:00:18]} 58... Kc7
{[%clk 0:00:19.6]} 59. Bd3 {[%clk 0:00:18.5]} 59... Kd7 {[%clk 0:00:20.2]}
1/2-1/2